Cogmind - Beta 17 @@@ ROGUE MODE // 2026.08.01 @ 12:04:46 Player: stevie364 Result: Destroyed by Executioner with Helical Railgun Performance ------------- Evolutions (8) 4000 Regions Visited (19) 3800 Robots Destroyed (305) 1525 Value Destroyed (10893) 10893 Prototype IDs (128) 2560 Alien Tech Used (2) 400 Bonus (3313) 3313 TOTAL SCORE: 26491 Bonus ------- High Alert Combat Kills 1147 Follower Combat Kills 1504 Network Hubs Disabled 200 Registered with UFD 300 Met Optimus in HQ 500 Built Enhanced Grunts 300 A7 Reached Mainframe 300 Met R17 at Cetus 500 Met Optimus at Protoforge 1000 Friendly Fire -2438 Cogmind --------- Core Integrity 0/1450 Matter 91/300 Energy 440/440 System Corruption 18% Temperature Cool (0) Movement Walking (123) Location -2/Protoforge Parts ------- > --- POWER (2) -------- Light Quantum Reactor (fused) Improved Quantum Reactor > --- PROPULSION (7) --- Overtuned Flexi-carbon Leg Overtuned Armored Exoskeleton Overtuned Armored Exoskeleton > --- UTILITY (12) ----- 0bPrime Scrap Suit Experimental Optical Array Weapon Mount Experimental Core Analyzer Experimental Core Analyzer Improved Armor Integrity Analyzer Experimental Reaction Control System Centrium Light Armor Plating Centrium Light Armor Plating Centrium Medium Armor Plating Graphene Brace > --- WEAPON (2) ------- Helical Railgun Point Singularity Launcher > --- INVENTORY (5) ---- Overtuned Quantum Rifle Overtuned Railgun Overtuned Railgun Helical Railgun Helical Railgun Peak State ------------ > --- POWER ------------ Micro Antimatter Reactor Micro Antimatter Reactor > --- PROPULSION ------- Electron Diverter Electron Diverter Improved Diametric Drive Cooled Impulse Thruster Cooled Impulse Thruster Improved Q-thruster Experimental Surge Thruster > --- UTILITY ---------- Scrap Suit Advanced Heat Sink Experimental Optical Array Experimental Targeting Computer Experimental Target Analyzer Experimental Core Analyzer Centrium Light Armor Plating Centrium Medium Armor Plating Centrium Medium Armor Plating Graphene Brace > --- WEAPON ----------- Core Cannon > --- INVENTORY -------- Concept XC Strikerail Concept XC Strikerail Point Singularity Launcher Sigix Broadsword [Rating: 195] Favorites ----------- Power Micro Antimatter Reactor Engine Ion Engine Power Core Micro Fission Core Reactor Micro Antimatter Reactor Propulsion Improved VTOL Module Treads Improved Treads Leg Overtuned Armored Exoskeleton Wheel Armored Wheel Hover Unit Linear Gravjet Flight Unit Improved VTOL Module Utility Hacking Suite Device Weapon Mount Storage Large Storage Unit Processor Improved Signal Interpreter Hackware Hacking Suite Protection Centrium Medium Armor Plating Weapon Light Cannon Energy Gun Beamcaster Energy Cannon Subdweller Beam Cannon Ballistic Gun Autogun Ballistic Cannon Light Cannon Launcher Precision Grenade Launcher Slashing Weapon Axe Piercing Weapon Plasma Lance Special Melee Weapon Advanced Datajack Build | -11 -10 -10 -9 -9 -8 -7 -7 -7 -7 -5 -5 -5 -5 -5 -4 -3 -2 -2 -2 ------- Run | Yrd Mat Min Mat Min Mat Fac Sto Rec Scr Fac Ext Cet Arc Hub Fac Res Res Qua Frg Slots Evolved 16 | . . . 2 . 2 2 . . . 4 . . . . 2 2 2 . . Power 1 | . . . . . . . . . . . . . . . 1 . . . . Propulsion 5 | . . . 1 . 1 1 . . . 1 . . . . 1 . . . . Utility 10 | . . . 1 . 1 1 . . . 3 . . . . . 2 2 . . Weapon . | . . . . . . . . . . . . . . . . . . . . Parts Attached 216 | 7 8 7 21 3 24 5 1 1 3 10 10 2 4 . 8 30 9 5 58 Power 23 | 1 1 1 1 1 3 . . . . 1 1 . . . 2 4 2 . 5 Engine 7 | 1 1 1 1 1 2 . . . . . . . . . . . . . . Core 6 | . . . . . 1 . . . . 1 1 . . . 2 . . . 1 Reactor 10 | . . . . . . . . . . . . . . . . 4 2 . 4 Propulsion 59 | 2 2 3 9 1 10 2 . . . 2 3 . . . 4 11 . 1 9 Treads 15 | 2 . . 5 1 5 . . . . . 2 . . . . . . . . Leg 12 | . 2 3 . . . . . . . . . . . . . . . . 7 Wheel 4 | . . . 4 . . . . . . . . . . . . . . . . Hover 8 | . . . . . 1 1 . . . . . . . . 3 3 . . . Flight 20 | . . . . . 4 1 . . . 2 1 . . . 1 8 . 1 2 Utility 85 | 2 2 1 6 1 6 2 1 1 2 5 4 2 3 . 2 14 4 2 25 Device 27 | 1 1 1 2 1 1 1 . . . 3 . . . . . 8 1 . 7 Storage 3 | 1 1 . . . . . . . 1 . . . . . . . . . . Processor 19 | . . . . . 2 . . . . . 2 . . . 1 4 . 1 9 Hackware 13 | . . . . . 1 1 1 1 1 1 . . 3 . 1 1 2 . . Protection 23 | . . . 4 . 2 . . . . 1 2 2 . . . 1 1 1 9 Artifact . | . . . . . . . . . . . . . . . . . . . . Weapon 49 | 2 3 2 5 . 5 1 . . 1 2 2 . 1 . . 1 3 2 19 Energy Gun 6 | . . 1 1 . . . . . . . . . . . . . . . 4 Energy Cannon 3 | . 1 . . . . . . . . . . . . . . . . 1 1 Ballistic Gun 17 | 2 . . 2 . 3 . . . . . . . . . . . . . 10 Ballistic Cannon 7 | . 2 1 . . . . . . . . 1 . . . . . 2 . 1 Launcher 5 | . . . 2 . 1 1 . . . . . . . . . . 1 . . Special Weapon . | . . . . . . . . . . . . . . . . . . . . Impact Weapon . | . . . . . . . . . . . . . . . . . . . . Slashing Weapon 8 | . . . . . 1 . . . 1 2 1 . . . . 1 . 1 1 Piercing Weapon 2 | . . . . . . . . . . . . . . . . . . . 2 Special Melee Weapon 1 | . . . . . . . . . . . . . 1 . . . . . . Unidentified Prototypes 23 | . . . 1 . 5 2 . . . . . 2 . . . . . 3 10 Parts Lost 60 | . 6 3 4 . 2 . 1 . . 1 1 . . 1 5 14 6 1 15 Power 6 | . 1 . 1 . . . . . . . . . . 1 . 2 . . 1 Propulsion 21 | . 2 1 1 . 1 . . . . 1 1 . . . 4 4 1 1 4 Utility 21 | . 1 1 1 . . . 1 . . . . . . . 1 7 3 . 6 Weapon 12 | . 2 1 1 . 1 . . . . . . . . . . 1 2 . 4 Highest Loss Streak 7 | . 5 1 1 . 1 . 1 . . 1 1 . . 1 2 7 4 1 4 To Critical Strikes . | . . . . . . . . . . . . . . . . . . . . Average Backups 7 | 1 6 13 14 14 14 4 4 5 6 5 4 5 5 5 4 3 4 3 4 Power 1 | 1 3 3 2 2 2 1 1 1 . . . . . . . . 1 . . Propulsion 1 | . . 3 4 4 3 . . . . . . . . . . . 1 . . Utility 2 | . 2 5 3 4 5 2 3 4 5 2 3 3 3 3 3 . . . . Weapon 2 | . 1 1 3 4 3 1 . . . 1 1 2 2 2 1 2 2 2 3 Tool/Special . | . . . . . . . . . . . . . . . . . . . . Unused Backups 32 | . . 1 6 6 6 . 1 1 3 3 . 1 . . 1 1 . 1 1 Power 3 | . . . . 1 1 . . . . 1 . . . . . . . . . Propulsion 9 | . . . 4 3 2 . . . . . . . . . . . . . . Utility 12 | . . 1 1 1 . . 1 1 3 1 . 1 . . 1 . . . 1 Weapon 7 | . . . 1 1 3 . . . . . . . . . . 1 . 1 . Tool/Special 1 | . . . . . . . . . . 1 . . . . . . . . . Average Slot Usage (%) 91 | . 98 96 96 100 99 96 100 100 99 97 91 88 90 94 90 70 90 90 77 Engine 4 | . 13 14 10 11 8 . . . . . . . . . . . . . . Core 1 | . . . . . . 7 7 7 7 5 5 5 5 5 5 1 . . . Reactor 1 | . . . . . . . . . . . . . . . . 3 8 8 7 Treads 8 | . 15 . 18 22 30 . . . . . 5 . . . . . . . . Leg 5 | . 11 28 2 . . . . . . . . . . . . . . . 7 Wheel 1 | . . . 9 11 3 . . . . . . . . . . . . . . Flight 13 | . . . . . . 30 38 38 37 34 24 29 29 29 25 17 29 29 9 Device 11 | . 13 11 11 11 9 7 7 7 2 16 10 11 11 11 7 11 22 21 14 Storage 5 | . 14 14 11 11 8 . . . 3 . . . . . . . . . . Processor 8 | . . . . . 8 7 7 7 7 5 9 11 11 11 13 14 12 8 18 Hackware 6 | . . . . . . 11 15 22 23 17 17 17 17 17 13 7 8 13 . Protection 5 | . . . 9 11 9 7 6 . . 4 6 5 5 5 5 1 2 4 8 Energy Gun 1 | . . 2 9 . . . . . . . . . . . . . . . . Energy Cannon 1 | . 5 4 . . . . . . . . . . . . . . . . . Ballistic Gun 5 | . 8 7 3 22 17 . . . . . . . . . . . . . 5 Ballistic Cannon 3 | . 13 11 8 . . . . . . . 2 2 2 . . . . 1 . Launcher 1 | . . . . . . 7 7 7 7 . 2 . . . . . . . . Slashing Weapon 1 | . . . . . . 7 7 7 7 9 2 2 2 5 4 3 2 2 . Peak Build Rating 195 | 7 11 19 24 21 36 53 50 50 53 75 77 76 85 85 102 155 154 168 195 Average Rating 68 | 5 9 14 20 20 30 45 49 50 49 71 69 74 78 85 96 99 145 150 171 On Entrance 60 | . 7 11 19 21 20 35 50 50 50 48 71 71 73 85 79 85 150 119 159 Avg Prop Armor Cover (%) 6 | . . . 12 14 15 4 2 2 . 4 2 . . . 7 6 1 1 2 Naked Turns . | . . . . . . . . . . . . . . . . . . . . Heaviest Build 75 | 13 37 41 42 36 43 20 18 18 24 23 39 27 27 23 27 40 42 43 75 Greatest Support 203 | 40 40 25 46 12 88 25 25 25 25 34 46 28 28 28 29 53 53 57 203 Greatest Overweight (x) 12 | . 12 1 4 2 3 . . . . . 1 . . . 2 1 . . 5 Average Overweight (x) . | . . 1 2 2 1 . . . . . . . . . . . . . . Largest Inventory Capacity 15 | 8 15 15 15 15 15 5 5 5 10 10 5 5 5 5 5 5 5 5 5 Average Capacity 9 | 7 14 15 15 15 14 5 5 5 7 5 5 5 5 5 5 5 5 5 5 Most Carried 15 | 2 10 15 15 15 15 5 5 5 10 9 5 5 5 5 5 5 5 5 5 Average Carried 7 | 1 6 13 14 14 14 4 4 4 6 4 4 5 5 5 4 4 4 3 4 Final Capacity 15 | 8 15 15 15 15 5 5 5 5 10 5 5 5 5 5 5 5 5 5 5 Final Carried 15 | 2 8 15 15 15 5 5 5 5 10 5 5 5 5 5 5 5 4 4 5 Scrap Suit Usage (%) 10 | . . . . . . . . . . . . . . . . . . . 57 Parts Cannibalized 22 | . . . . . . . . . . . . . . . . . . . 22 Class Distribution -------------------- 30% | Mutant 21% | Hacker-Sprinter 16% | Scavenger-Mutant 9% | Scavenger-Scrapper 4% | Hacker-Mutant 3% | Commander-Sprinter 3% | Scavenger-Sprinter Dominant Class ---------------- Mutant | -10/Materials Mutant | -10/Mines Scavenger-Mutant | -9/Materials Mutant | -9/Mines Mutant | -8/Materials Hacker-Sprinter | -7/Factory Commander-Sprinter | -7/Storage Hacker-Sprinter | -7/Recycling Hacker-Sprinter | -7/Scraptown Hacker-Sprinter | -5/Factory Hacker-Mutant | -5/Extension Commander-Sprinter | -5/Cetus Hacker-Sprinter | -5/Archives Hacker-Sprinter | -5/Hub_04(d) Hacker-Sprinter | -4/Factory Sprinter | -3/Research Ninja | -2/Research Hacker-Ninja | -2/Quarantine Scavenger-Scrapper | -2/Protoforge Resources | -11 -10 -10 -9 -9 -8 -7 -7 -7 -7 -5 -5 -5 -5 -5 -4 -3 -2 -2 -2 ----------- Run | Yrd Mat Min Mat Min Mat Fac Sto Rec Scr Fac Ext Cet Arc Hub Fac Res Res Qua Frg Matter Collected 9684 | 318 421 195 803 132 1175 180 83 75 70 170 691 218 278 . 328 647 459 163 3278 Remotely . | . . . . . . . . . . . . . . . . . . . . Salvage Created 11001 | 209 652 275 1458 195 1571 231 325 157 . 790 1077 304 332 . 241 767 587 161 1669 Parts 589 | 16 45 28 105 15 99 13 17 4 . 28 45 9 25 . 11 23 28 5 73 Haulers Intercepted 25 | . 2 . 4 . 4 2 3 . . 4 . . . . . 5 1 . . Recyclers Shooed 9 | . 1 . 1 . 4 . . . . . . . . . . . 3 . . Parts Field Recycled . | . . . . . . . . . . . . . . . . . . . . Retrieved Matter . | . . . . . . . . . . . . . . . . . . . . Parts Self-Destructed . | . . . . . . . . . . . . . . . . . . . . Prevented . | . . . . . . . . . . . . . . . . . . . . Parts Restored . | . . . . . . . . . . . . . . . . . . . . Kills | -11 -10 -10 -9 -9 -8 -7 -7 -7 -7 -5 -5 -5 -5 -5 -4 -3 -2 -2 -2 ------- Run | Yrd Mat Min Mat Min Mat Fac Sto Rec Scr Fac Ext Cet Arc Hub Fac Res Res Qua Frg Combat Hostiles Destroyed 190 | . 19 14 30 3 33 1 2 4 . 4 11 4 2 . 3 . 8 . 52 Melee 10 | . . . . . . 1 . 1 . 4 3 . . . . . . . 1 Guns 70 | . 3 4 15 3 29 . . . . . . . . . . . . . 16 Cannons 49 | . 16 10 3 . . . . . . . 8 4 2 . . . 2 . 4 AOE 60 | . . . 12 . 4 . 2 3 . . . . . . 3 . 6 . 30 Classes Destroyed 25 | 3 4 . 4 . 1 . . 2 . 1 1 . . . . 1 . . 8 Worker 11 | 2 1 . 4 . 2 1 . . . . . . . . . . 1 . . Builder 13 | . . . 7 . 2 1 . . . . . . . . 1 1 1 . . Tunneler 12 | 6 . . . 4 1 . . . . . . . . . . . 1 . . Hauler 25 | . 2 . 4 . 4 2 3 . . 4 . . . . . 5 1 . . Recycler 17 | 1 . 1 3 . 2 . 1 1 . . 1 . . . 1 1 4 1 . Carrier 1 | . . . . . . . . . . . . . . . . . . . 1 Mechanic 4 | . . . . . . . . . . . . . . . . 2 . 1 1 Operator 14 | . 3 . 2 . 1 . 1 . . . 1 . 6 . . . . . . Drone 4 | . . . . . . . . . . . . . . . . . . . 4 Watcher 14 | . . . 4 . 2 1 . . . 4 1 1 . . 1 . . . . Swarmer 55 | . 3 13 12 . 15 . . . . . . . . . . . 6 . 6 Saboteur 2 | . . . . . . . . . . . . . . . . . . . 2 Grunt 55 | . 16 1 11 3 11 1 1 1 . . 4 . . . . . . . 6 Brawler 4 | . . . 1 . . . . . . . . . . . . . . . 3 Duelist 4 | . . . . . 1 . . 1 . . . . . . . . . . 2 Protector 3 | . . . . . . . . 1 . . . . . . . . . . 2 Sentry 22 | . . . 6 . 6 . 1 . . 2 4 . 2 . . . 1 . . Specialist 4 | . . . . . . . . . . . . . . . . . . . 4 Hunter 4 | . . . . . . . . 1 . . 1 . . . . . . . 2 Programmer 10 | . . . . . . . . . . 2 1 . . . 3 . 1 . 3 Behemoth 1 | . . . . . . . . . . . 1 . . . . . . . . Cetus Guard 4 | . . . . . . . . . . . . 4 . . . . . . . Hotshot 6 | . . . . . . . . . . . . . . . . . . . 6 Decapitator 3 | . . . . . . . . . . . . . . . . . . . 3 Immortal 1 | . . . . . . . . . . . . . . . . . . . 1 Striker 4 | . . . . . . . . . . . . . . . . . . . 4 Executioner 4 | . . . . . . . . . . . . . . . . . . . 4 Scrapoid 1 | . . . . . . . . . . . . . . . . . . . 1 Savage 1 | . . . . . . . . . . . 1 . . . . . . . . Butcher 2 | . . . . . . . . . . . 1 1 . . . . . . . Best Kill Streak 9 | 2 4 6 9 3 8 3 3 4 . 3 3 3 8 . 3 4 6 2 7 Combat Bots Only 7 | . 4 6 5 3 7 1 2 3 . 3 3 2 2 . 3 . 4 . 7 Max Kills in Single Turn 6 | 1 1 2 4 2 4 1 1 2 . 1 2 1 1 . 1 1 4 1 6 Gunslinging 1 | . . 1 . 1 . . . . . . . . . . . . . . 1 Exploded 6 | . . . 3 . 4 . 1 1 . . . . . . 1 . 3 . 6 Melee 1 | . . . . . . 1 . 1 . 1 1 . . . . . . . 1 Uniques/NPCs Destroyed . | . . . . . . . . . . . . . . . . . . . . Combat | -11 -10 -10 -9 -9 -8 -7 -7 -7 -7 -5 -5 -5 -5 -5 -4 -3 -2 -2 -2 -------- Run | Yrd Mat Min Mat Min Mat Fac Sto Rec Scr Fac Ext Cet Arc Hub Fac Res Res Qua Frg Hostile Shots Fired 1346 | . 113 99 74 13 127 3 9 3 . 31 39 4 . 3 107 186 203 16 316 Missed 544 | . 24 26 17 3 25 3 6 1 . 15 13 1 . . 50 88 106 9 157 Hits 802 | . 89 73 57 10 102 . 3 2 . 16 26 3 . 3 57 98 97 7 159 Melee 9 | . . . . . . . . . . . . . . . . . . . 9 Projectile 793 | . 89 73 57 10 102 . 3 2 . 16 26 3 . 3 57 98 97 7 150 AOE 5 | . . . . . . . . . . . . . . . 1 . . . 4 Critical Strikes 45 | . 1 2 . . 5 . . . . 1 1 . . . 3 7 5 1 19 Actively Blocked 28 | . . . . . . . . . . . . . . . . 3 5 1 19 Part Disruptions 5 | . . 3 . . . . . . . . . . . . . . 1 . 1 Damage Taken 15789 | . 999 668 682 125 1337 . 26 36 . 389 434 115 28 59 976 1570 1983 160 6202 Core 2165 | . 120 64 88 30 232 . 10 . . 107 72 13 . . 170 262 251 . 746 Absorbed by Shields 373 | . . . . . . . . . . . 128 64 . . 10 . 159 . 12 Redirected to Shielding 16 | . . . . . . . . . . . . . . . . . . . 16 Regen/Repaired (Parts) 1120 | . 95 . . . . 11 . . . 11 57 106 29 1 102 78 63 114 453 Core Remaining (%) 74 | 100 . 26 . 70 57 . . . 98 . . . . 80 85 79 . . . Volleys Fired 736 | 24 93 40 96 14 121 . 4 5 . . 63 35 19 . 12 7 44 9 150 Largest 2 | 2 2 2 2 2 2 . 1 1 . . 1 1 1 . 1 1 1 1 2 Hottest 300 | 40 110 110 108 46 50 . 36 36 . . 48 48 48 . 48 48 56 120 300 Shots Fired 1150 | 48 170 68 179 28 241 . 4 5 . . 64 35 19 . 12 7 43 9 218 Gun 704 | 48 83 28 109 28 240 . . . . . . . . . . . . . 168 Cannon 391 | . 87 40 61 . . . . . . . 64 35 19 . 7 5 39 9 25 Launcher 55 | . . . 9 . 1 . 4 5 . . . . . . 5 2 4 . 25 Special . | . . . . . . . . . . . . . . . . . . . . Kinetic 943 | 48 152 52 88 28 240 . . . . . 64 35 19 . 7 5 39 8 158 Thermal 152 | . 18 16 82 . . . . . . . . . . . . . . 1 35 Explosive 55 | . . . 9 . 1 . 4 5 . . . . . . 5 2 4 . 25 Electromagnetic . | . . . . . . . . . . . . . . . . . . . . Robot Hit Streak 40 | 6 23 6 13 11 21 . 2 7 . . 8 10 5 . 5 1 6 6 40 Robot Miss Streak 5 | 4 5 3 5 1 4 . 1 . . . 4 2 2 . . 3 4 . 3 Penetration Max 2 | . . . . . . . . . . . 1 1 1 . . . 1 . 2 Secondary Targets 9 | . . 1 . 1 3 . . . . . . . . . . . . . 4 Max Gunslinging Chain 1 | . . 1 . 1 1 . . . . . . . . . . . . . 1 Shots Hit Robots 867 | 30 115 37 111 22 167 12 11 10 . 46 44 33 19 . 12 20 26 4 148 Core Hits 443 | 15 37 20 64 9 64 6 10 11 . 16 29 13 9 . 11 10 16 2 101 Critical Kills 33 | 1 . . . . 2 . . . . . 8 5 2 . . . 3 1 11 Critical Parts Destroyed 54 | . . . . . . . . . . . 13 10 4 . . 1 6 2 18 Critical Strikes 126 | 1 2 2 11 . 2 1 . 1 . 3 26 18 7 . 1 3 12 3 33 Burn 11 | . . . 7 . . . . . . . . . . . . . . . 4 Destroy 94 | 1 . . . . 2 . . . . . 23 17 7 . . 1 11 3 29 Blast 8 | . 2 2 4 . . . . . . . . . . . . . . . . Sever 13 | . . . . . . 1 . 1 . 3 3 1 . . 1 2 1 . . Melee Attacks 247 | . . . . . 3 17 11 8 . 76 13 6 7 1 24 42 27 5 7 Impact . | . . . . . . . . . . . . . . . . . . . . Slashing 245 | . . . . . 3 17 11 8 . 76 13 6 7 1 22 42 27 5 7 Piercing . | . . . . . . . . . . . . . . . . . . . . Sneak Attacks 48 | . . . . . . 4 4 1 . 4 1 6 6 . 5 10 6 . 1 Combat Hostiles 1 | . . . . . . . . . . . 1 . . . . . . . . Follow-up Attacks 10 | . . . . . . . . . . 10 . . . . . . . . . Damage Inflicted 36231 | 246 1543 701 3393 321 3053 624 880 659 . 2209 1911 978 1100 . 822 2372 2404 75 12940 Guns 9455 | 246 496 182 1492 321 2743 . . . . . . . . . . . . . 3975 Cannons 6755 | . 1014 506 859 . . . . . . . 1146 608 245 . . 24 251 75 2027 Explosions 10452 | . . . 1042 . 237 . 306 363 . . . . . . 361 301 1109 . 6733 Melee 9398 | . . . . . . 624 574 296 . 2209 765 370 855 . 461 2047 1044 . 153 Ramming 171 | . 33 13 . . 73 . . . . . . . . . . . . . 52 Kinetic 12073 | 246 1236 433 1061 321 2743 . . . . . 1146 608 245 . . 24 251 75 3684 Thermal 4137 | . 274 255 1290 . . . . . . . . . . . . . . . 2318 Explosive 10452 | . . . 1042 . 237 . 306 363 . . . . . . 361 301 1109 . 6733 Electromagnetic . | . . . . . . . . . . . . . . . . . . . . Impact . | . . . . . . . . . . . . . . . . . . . . Slashing 9398 | . . . . . . 624 574 296 . 2209 765 370 855 . 461 2047 1044 . 153 Piercing . | . . . . . . . . . . . . . . . . . . . . Highest Corruption 18 | . . . . . . . . . . 2 2 2 2 2 3 9 7 10 18 Average Corruption 9 | . . . . . . . . . . 1 2 2 2 2 2 8 5 8 16 Corruption Purged . | . . . . . . . . . . . . . . . . . . . . Corruption Blocked . | . . . . . . . . . . . . . . . . . . . . Effects 227 | . . . . . . . . . . 4 26 7 1 . 1 18 5 8 157 Message Errors 47 | . . . . . . . . . . 2 10 1 . . . 4 1 2 27 Matter Fused 53 | . . . . . . . . . . 1 4 1 . . . 4 1 . 42 Heat Flow Errors 25 | . . . . . . . . . . . 4 . . . . 2 1 2 16 Energy Discharges 22 | . . . . . . . . . . . 2 1 . . 1 3 . 1 14 Parts Rejected 5 | . . . . . . . . . . . 2 . . . . . 1 . 2 Parts Fused 2 | . . . . . . . . . . . . . . . . 1 . . 1 Data Loss (minor) 25 | . . . . . . . . . . . 2 1 . . . 3 . 3 16 Data Loss (major) 13 | . . . . . . . . . . 1 . 1 1 . . . . . 10 Misfires 1 | . . . . . . . . . . . 1 . . . . . . . . Alerts 6 | . . . . . . . . . . . 1 2 . . . 1 . . 2 Misdirections 20 | . . . . . . . . . . . . . . . . . . . 20 Weapon Failures 8 | . . . . . . . . . . . . . . . . . 1 . 7 Overload Shots . | . . . . . . . . . . . . . . . . . . . . Overflow Damage 2175 | . 9 . 115 . 47 . 55 14 . 138 1 . 188 . 10 485 673 . 440 Projectiles 17 | . 9 . 8 . . . . . . . . . . . . . . . . Explosions 778 | . . . 107 . 47 . 10 . . . . . . . . 7 297 . 310 Melee 1380 | . . . . . . . 45 14 . 138 1 . 188 . 10 478 376 . 130 Knockbacks 34 | . 7 5 8 . . . . . . . 4 2 2 . . 1 3 1 1 Impact . | . . . . . . . . . . . . . . . . . . . . Kinetic 33 | . 7 5 7 . . . . . . . 4 2 2 . . 1 3 1 1 Secondary 1 | . . . 1 . . . . . . . . . . . . . . . . Self-Inflicted Damage 337 | . . . 54 . . . . 36 . . . . . . . . . . 247 Shots 8 | . . . 3 . . . . 2 . . . . . . . . . . 3 Rammed 12 | . 6 . . . 6 . . . . . . . . . . . . . . Targets Rammed 28 | . 8 8 . . 10 . . . . . . . . . . . . . 2 Kicked 11 | . 1 8 . . . . . . . . . . . . . . . . 2 Crushed 5 | . 1 . . . 4 . . . . . . . . . . . . . . Highest Temperature 345 | . 24 240 345 . 151 3 9 8 90 37 253 70 112 3 216 301 303 190 263 Average Temperature 54 | . 9 54 103 . 41 3 4 2 10 9 50 23 58 2 43 88 100 68 102 Received Heat Transfer 2369 | . 492 291 240 66 585 . 12 . . 45 113 . . 27 21 . 69 . 408 Effects 6 | . . 1 2 . . . . . . . . . . . 1 . . . 2 Shutdowns 1 | . . . 1 . . . . . . . . . . . . . . . . Energy Bleed 1 | . . . . . . . . . . . . . . . . . . . 1 Interference 4 | . . 1 1 . . . . . . . . . . . 1 . . . 1 Siege Activations . | . . . . . . . . . . . . . . . . . . . . Martial Activations . | . . . . . . . . . . . . . . . . . . . . Shielding Activations . | . . . . . . . . . . . . . . . . . . . . Robots Disrupted . | . . . . . . . . . . . . . . . . . . . . Combat Hostiles . | . . . . . . . . . . . . . . . . . . . . Robots Corrupted 1 | . . . . . . . . . . . . . . . . . . . 1 Combat Hostiles . | . . . . . . . . . . . . . . . . . . . . Parts Fried . | . . . . . . . . . . . . . . . . . . . . Impact Corruptions 2 | . . . . . . . . . . . . . . . . . . . 2 Robots Melted . | . . . . . . . . . . . . . . . . . . . . Combat Hostiles . | . . . . . . . . . . . . . . . . . . . . Parts Melted 4 | . . . 3 . . . . . . . 1 . . . . . . . . Heat Transferred 4427 | . 370 370 2775 . . . . . . . . . . . . . . . 912 Parts Sabotaged . | . . . . . . . . . . . . . . . . . . . . Parts Stolen . | . . . . . . . . . . . . . . . . . . . . Parts Stripped . | . . . . . . . . . . . . . . . . . . . . Power Chain Reactions . | . . . . . . . . . . . . . . . . . . . . Alert | -11 -10 -10 -9 -9 -8 -7 -7 -7 -7 -5 -5 -5 -5 -5 -4 -3 -2 -2 -2 ------- Run | Yrd Mat Min Mat Min Mat Fac Sto Rec Scr Fac Ext Cet Arc Hub Fac Res Res Qua Frg Maximum Alert Level 4 | . . . 2 . 2 1 2 1 . . 2 1 1 . 1 . 2 1 4 Low Security (%) 58 | 100 100 100 21 100 50 72 67 82 . 100 46 1 38 100 96 100 37 . 13 Level 1 23 | . . . 68 . 18 27 24 17 . . 21 98 61 . 3 . 29 100 32 Level 2 14 | . . . 10 . 30 . 7 . . . 32 . . . . . 32 . 31 Level 3 4 | . . . . . . . . . . . . . . . . . . . 22 Level 4 . | . . . . . . . . . . . . . . . . . . . . Level 5 . | . . . . . . . . . . . . . . . . . . . . High Security . | . . . . . . . . . . . . . . . . . . . . Max Security . | . . . . . . . . . . . . . . . . . . . . Peak Influence 1144 | 10 162 165 508 196 527 241 453 223 . 111 478 396 287 148 241 127 512 283 1144 Initial 258 | . . 18 18 196 . 229 46 138 . . 23 232 109 96 58 120 1 258 127 Average 214 | 1 66 43 259 98 261 163 166 162 . 28 260 288 220 121 53 25 278 256 469 Influence Increases 10284 | 45 623 478 1022 90 1038 111 692 190 . 328 1138 364 258 54 579 368 950 79 1877 Destroy 0b10 Robot/C 4360 | . 380 280 600 60 660 20 260 60 . 80 500 160 80 . 80 . 200 . 940 Destroy 0b10 Robot/NC 615 | 45 30 5 120 20 70 25 30 10 . 40 35 10 30 . 15 45 40 10 35 Destroy Leader 768 | . 84 40 146 10 132 6 58 . . 46 64 . . . 22 10 40 . 110 Allied During Kill 669 | . . . . . . . 115 . . 1 310 132 110 . 1 . . . . Successful Hack 333 | . . . 27 . 13 26 16 38 . 37 8 . . . 20 27 82 12 27 Select Force Hacks 140 | . 30 . 30 . . . . 30 . . . . . 50 . . . . . Disable Machine 390 | . 15 15 30 . 90 . 15 . . 15 15 . 30 . . 15 15 45 90 Destroy Structure 864 | . 9 3 69 . 13 4 33 37 . 34 26 62 8 4 66 46 108 12 330 Partial Spotted 510 | . . . . . 15 30 . . . 15 120 . . . 90 75 105 . 60 Lose Combat Pursuer 1635 | . 75 135 . . 45 . 165 15 . 60 60 . . . 285 150 360 . 285 Influence Decreases 9140 | 45 574 479 566 594 533 514 439 367 178 279 770 507 255 211 468 596 492 313 960 Entered New Map 2131 | . . 31 30 308 . 276 56 217 178 . 26 185 165 181 62 111 2 203 100 Time Decay 5636 | 45 568 428 502 286 513 238 188 150 . 269 574 262 50 . 236 247 270 100 710 Search Patrol Dispatched 200 | . . . . . . . . . . . . . . . 100 . 100 . . Lost Part 487 | . 6 20 34 . 20 . 10 . . 10 10 . . 10 50 97 60 10 150 Lost Ally 555 | . . . . . . . 185 . . . 160 60 40 20 20 10 60 . . Purge Threat 131 | . . . . . . . . . . . . . . . . 131 . . . Squads Dispatched 74 | . 4 . 5 . 4 6 3 . . 10 3 . . 2 9 13 8 2 5 Investigation 35 | . 2 . 3 . . 2 2 . . 8 1 . . 1 6 4 3 1 2 Extermination 9 | . . . . . . 2 . . . 2 . . . . 2 . 2 1 . Reinforcement 28 | . 2 . 2 . 2 2 1 . . . 2 . . 1 1 9 3 . 3 Assault 2 | . . . . . 2 . . . . . . . . . . . . . . Garrison . | . . . . . . . . . . . . . . . . . . . . Intercept . | . . . . . . . . . . . . . . . . . . . . Searches Triggered 2 | . . . . . . . . . . . . . . . 1 . 1 . . Construction Impeded 1 | . . . . . . . . . . . 1 . . . . . . . . Haulers Reinforced 5 | . . . . . . . . . . . . . . . . 5 . . . Active Scanning Responses . | . . . . . . . . . . . . . . . . . . . . Cargo Convoy Interrupts . | . . . . . . . . . . . . . . . . . . . . Stealth | -11 -10 -10 -9 -9 -8 -7 -7 -7 -7 -5 -5 -5 -5 -5 -4 -3 -2 -2 -2 --------- Run | Yrd Mat Min Mat Min Mat Fac Sto Rec Scr Fac Ext Cet Arc Hub Fac Res Res Qua Frg Distress Signals 52 | . 3 . 5 . 7 . 3 . . 2 5 2 . . 2 8 4 1 10 Communications Jammed . | . . . . . . . . . . . . . . . . . . . . Distress Signals . | . . . . . . . . . . . . . . . . . . . . Times Spotted 594 | . 38 23 42 3 53 4 15 7 . 20 32 5 10 9 38 31 57 9 198 Peak Tracking Total 20 | . 6 5 6 3 5 2 8 4 . 6 5 5 1 11 20 18 20 6 12 Tactical Retreats 63 | . 3 9 . . 2 . 5 1 . 2 2 . . . 6 4 9 1 19 ECM-based Alert Blocks 22 | . . . . . . . 1 . . . . . . . . 1 . 4 16 Traps | -11 -10 -10 -9 -9 -8 -7 -7 -7 -7 -5 -5 -5 -5 -5 -4 -3 -2 -2 -2 ------- Run | Yrd Mat Min Mat Min Mat Fac Sto Rec Scr Fac Ext Cet Arc Hub Fac Res Res Qua Frg Traps Triggered 20 | . 1 . 4 . . . . . . 4 1 . . . 1 4 3 . 2 Indirectly . | . . . . . . . . . . . . . . . . . . . . Trap Hack Attempts . | . . . . . . . . . . . . . . . . . . . . Triggered . | . . . . . . . . . . . . . . . . . . . . Disarmed . | . . . . . . . . . . . . . . . . . . . . Reprogrammed . | . . . . . . . . . . . . . . . . . . . . Reused . | . . . . . . . . . . . . . . . . . . . . Traps Extracted . | . . . . . . . . . . . . . . . . . . . . Installed . | . . . . . . . . . . . . . . . . . . . . Triggered . | . . . . . . . . . . . . . . . . . . . . Machines | -11 -10 -10 -9 -9 -8 -7 -7 -7 -7 -5 -5 -5 -5 -5 -4 -3 -2 -2 -2 ---------- Run | Yrd Mat Min Mat Min Mat Fac Sto Rec Scr Fac Ext Cet Arc Hub Fac Res Res Qua Frg Machines Disabled 28 | . 1 2 2 . 6 . 1 . . 1 1 . 2 . . 1 1 3 7 Max in Single Turn 2 | . 1 1 1 . 1 . 1 . . 1 1 . 1 . . 1 1 1 2 Garrison Access 6 | . . . . . 1 1 . . . 1 . . . . . . 2 1 . Network Hub 1 | . . . . . . . . . . . . . . 1 . . . . . Machines Repaired . | . . . . . . . . . . . . . . . . . . . . Machines Dismantled . | . . . . . . . . . . . . . . . . . . . . Machines Sabotaged 1 | . . . . . . . . . . . . . . 1 . . . . . Overloaded Fab Kills . | . . . . . . . . . . . . . . . . . . . . Hacking | -11 -10 -10 -9 -9 -8 -7 -7 -7 -7 -5 -5 -5 -5 -5 -4 -3 -2 -2 -2 --------- Run | Yrd Mat Min Mat Min Mat Fac Sto Rec Scr Fac Ext Cet Arc Hub Fac Res Res Qua Frg Machines Accessed 120 | . 3 . 6 . 10 12 6 6 1 21 13 1 . 1 12 8 12 5 3 Terminals 68 | . 1 . 5 . 7 7 6 5 . 9 11 1 . 1 5 1 6 2 1 Fabricators 8 | . . . . . . 1 . . . 2 . . . . 1 2 1 . 1 Repair Stations 12 | . 1 . . . 1 1 . . . 2 1 . . . 1 3 1 1 . Recycling Units 19 | . 1 . 1 . . . . 1 . 6 1 . . . 4 2 2 . 1 Scanalyzers 6 | . . . . . 1 2 . . . 1 . . . . 1 . . 1 . Garrison Access 6 | . . . . . 1 1 . . . 1 . . . . . . 2 1 . Total Hacks 277 | . 5 . 11 . 23 23 16 6 1 48 28 2 . 3 30 18 41 11 11 Successful 141 | . 3 . 5 . 9 13 7 5 1 31 11 1 . 1 21 9 14 6 4 Failed 134 | . 2 . 6 . 13 10 9 1 . 17 17 1 . 2 9 9 27 4 7 Catastrophic 33 | . 1 . 3 . 4 2 . 1 . 4 3 . . . 2 3 6 2 2 Database Lockouts 2 | . . . . . 1 . . . . . . . . . . . . 1 . Manual 136 | . 3 . 8 . 10 11 4 6 . 29 12 1 . 3 16 7 12 6 8 Terminals 161 | . 1 . 10 . 12 14 16 5 . 28 25 2 . 3 14 3 17 6 5 Fabricators 27 | . . . . . . 1 . . . 4 . . . . 5 3 11 . 3 Repair Stations 26 | . 2 . . . 2 3 . . . 3 2 . . . 2 7 4 1 . Recycling Units 30 | . 2 . 1 . . . . 1 . 7 1 . . . 4 5 6 . 3 Scanalyzers 21 | . . . . . 6 4 . . . 4 . . . . 5 . . 2 . Garrison Access 11 | . . . . . 3 1 . . . 2 . . . . . . 3 2 . Terminal Hacks 54 | . . . 3 . 3 3 6 2 1 11 6 1 . . 7 2 6 2 1 Record 3 | . . . . . . . . . 1 . . . . . . . 2 . . Part Schematic 4 | . . . . . . . . 2 . 1 . . . . 1 . . . . Robot Analysis 3 | . . . 1 . 1 . . . . . . . . . 1 . . . . Prototype ID Bank 3 | . . . . . . . 2 . . 1 . . . . . . . . . Open Door 9 | . . . . . . . 1 . . 1 6 1 . . . . . . . Level Access Points 3 | . . . . . . . . . . . . . . . 1 1 1 . . Branch Access Points 7 | . . . 1 . 1 1 1 . . 1 . . . . 1 . 1 . . Emergency Access Points 2 | . . . . . . . . . . 1 . . . . . . . 1 . Machine Index 1 | . . . . . . . . . . . . . . . . . 1 . . Terminal Index 3 | . . . . . . 1 . . . 1 . . . . 1 . . . . Fabricator Index 1 | . . . . . . . . . . . . . . . 1 . . . . Recycling Unit Index 1 | . . . . . . . . . . 1 . . . . . . . . . Scanalyzer Index 1 | . . . . . . . . . . 1 . . . . . . . . . Alert Level 1 | . . . . . . . . . . 1 . . . . . . . . . Unreport Threat 1 | . . . . . . . . . . . . . . . . 1 . . . Locate Traps 1 | . . . . . . . . . . . . . . . 1 . . . . Maintenance Status 3 | . . . . . . 1 1 . . . . . . . . . 1 . . Recall Investigation 1 | . . . . . . . . . . 1 . . . . . . . . . Hauler Manifests 3 | . . . 1 . 1 . . . . 1 . . . . . . . . . Registered Components 1 | . . . . . . . 1 . . . . . . . . . . . . Zone Layout 2 | . . . . . . . . . . . . . . . . . . 1 1 Fabricator Hacks 11 | . . . . . . 1 . . . 3 . . . . 2 2 1 . 2 Network Status 4 | . . . . . . 1 . . . 1 . . . . 1 . 1 . . Load Schematic 4 | . . . . . . . . . . 1 . . . . 1 1 . . 1 Build 3 | . . . . . . . . . . 1 . . . . . 1 . . 1 Repair Station Hacks 13 | . 2 . . . . 2 . . . 2 2 . . . 2 2 1 . . Scan Component 7 | . 1 . . . . 1 . . . 1 1 . . . 1 1 1 . . Repair 6 | . 1 . . . . 1 . . . 1 1 . . . 1 1 . . . Recycling Unit Hacks . | . . . . . . . . . . . . . . . . . . . . Scanalyzer 17 | . . . . . 4 4 . . . 4 . . . . 4 . . 1 . Insert Component 4 | . . . . . 2 1 . . . . . . . . 1 . . . . Analyze 4 | . . . . . 1 1 . . . . . . . . 2 . . . . Retrieve Study 9 | . . . . . 1 2 . . . 4 . . . . 1 . . 1 . Garrison Access Hacks 6 | . . . . . 1 1 . . . 1 . . . . . . 2 1 . Seal Access 6 | . . . . . 1 1 . . . 1 . . . . . . 2 1 . Unauthorized Hacks 40 | . 1 . 2 . 1 2 1 3 . 10 3 . . 1 6 3 4 2 1 Terminals 15 | . . . 1 . 1 2 1 2 . 3 2 . . 1 1 . . 1 . Assimilate 4 | . . . . . . 1 . . . 2 . . . . 1 . . . . Botnet 10 | . . . 1 . 1 1 1 2 . 1 2 . . . . . . 1 . Sabotage 1 | . . . . . . . . . . . . . . 1 . . . . . Fabricators 3 | . . . . . . . . . . 1 . . . . 1 . 1 . . Liberate 1 | . . . . . . . . . . . . . . . . . 1 . . Recompile 2 | . . . . . . . . . . 1 . . . . 1 . . . . Repair Stations 3 | . . . . . . . . . . . . . . . . 1 1 1 . Patch 3 | . . . . . . . . . . . . . . . . 1 1 1 . Recycling Units 19 | . 1 . 1 . . . . 1 . 6 1 . . . 4 2 2 . 1 Tunnel 3 | . 1 . 1 . . . . 1 . . . . . . . . . . . Fedlink 16 | . . . . . . . . . . 6 1 . . . 4 2 2 . 1 Scanalyzers . | . . . . . . . . . . . . . . . . . . . . Garrison Access . | . . . . . . . . . . . . . . . . . . . . Data Cores Recovered 2 | . 1 . 1 . . . . . . . . . . . . . . . . Used 1 | . . . 1 . . . . . . . . . . . . . . . . Hacking Detections 72 | . 2 . 5 . 8 8 5 3 . 11 7 . . 1 6 5 7 1 3 Full Trace Events 8 | . . . 1 . . 2 2 . . 1 . . . . 1 . . . 1 Feedback Events 1 | . . . . . . . 1 . . . . . . . . . . . . Hackware Fried 1 | . . . . . . . 1 . . . . . . . . . . . . Feedback Blocked 1 | . . . . . . . . . . 1 . . . . . . . . . Robot Schematics Acquired . | . . . . . . . . . . . . . . . . . . . . Robots Built . | . . . . . . . . . . . . . . . . . . . . Authchips . | . . . . . . . . . . . . . . . . . . . . Time . | . . . . . . . . . . . . . . . . . . . . Total Robot Build Rating . | . . . . . . . . . . . . . . . . . . . . Part Schematics Acquired 7 | . . . . . 1 1 . 2 . 1 . . . . 2 . . . . Parts Built 6 | . . . . . . . . . . 2 . . . . . 2 . . 2 Authchips 2 | . . . . . . . . . . 1 . . . . . 1 . . . Time 117 | . . . . . . . . . . 47 . . . . . 39 . . 31 Total Part Build Rating 34 | . . . . . . . . . . 10 . . . . . 14 . . 10 Part Studies Acquired 9 | . . . . . 1 2 . . . 4 . . . . 1 . . 1 . Parts Repaired 6 | . 1 . . . . 1 . . . 1 1 . . . 1 1 . . . Time 350 | . 26 . . . . 136 . . . 54 35 . . . 50 49 . . . Parts Recycled . | . . . . . . . . . . . . . . . . . . . . Recycled Matter . | . . . . . . . . . . . . . . . . . . . . Retrieved Matter . | . . . . . . . . . . . . . . . . . . . . Retrieved Components . | . . . . . . . . . . . . . . . . . . . . Parts Scanalyzed 3 | . . . . . 1 1 . . . . . . . . 1 . . . . Part Schematics Acquired 3 | . . . . . 1 1 . . . . . . . . 1 . . . . Parts Damaged 1 | . . . . . 1 . . . . . . . . . . . . . . Bothacking | -11 -10 -10 -9 -9 -8 -7 -7 -7 -7 -5 -5 -5 -5 -5 -4 -3 -2 -2 -2 ------------ Run | Yrd Mat Min Mat Min Mat Fac Sto Rec Scr Fac Ext Cet Arc Hub Fac Res Res Qua Frg Used RIF Installer . | . . . . . . . . . . . . . . . . . . . . Robots Hacked 2 | . . . . . . . . . . . . . . . 2 . . . . Non-combat 2 | . . . . . . . . . . . . . . . 2 . . . . Combat . | . . . . . . . . . . . . . . . . . . . . Robot Hacks Applied 2 | . . . . . . . . . . . . . . . 2 . . . . parse_system 2 | . . . . . . . . . . . . . . . 2 . . . . Relay Couplers Released 2 | . . . . . . . . . . . . . . . . . 2 . . Machine Destruction 2 | . . . . . . . . . . . . . . . . . 2 . . Fabnet Peak Effective % . | . . . . . . . . . . . . . . . . . . . . Robots Rewired 16 | . . . . . . . 2 3 . . 11 . . . . . . . . Allies Hacked . | . . . . . . . . . . . . . . . . . . . . Hacks Repelled . | . . . . . . . . . . . . . . . . . . . . Allies | -11 -10 -10 -9 -9 -8 -7 -7 -7 -7 -5 -5 -5 -5 -5 -4 -3 -2 -2 -2 -------- Run | Yrd Mat Min Mat Min Mat Fac Sto Rec Scr Fac Ext Cet Arc Hub Fac Res Res Qua Frg Total Allies 43 | . . . . . . 1 10 3 . 1 20 5 . . . . 3 . . Largest Group 11 | . . . . . . 1 11 3 3 3 10 9 8 5 1 . 3 . . Highest-Rated Group 701 | . . . . . . 10 183 48 48 48 418 701 652 473 96 . 174 . . Highest-Rated Ally 159 | . . . . . . 10 29 20 20 20 159 159 142 96 96 . 58 . . Initial UFD Resources 115 | . . . . . . . . . . 37 59 61 61 61 63 84 101 115 115 Total Orders 3 | . . . . . . . 1 . 1 . . . . . . 1 . . . STAY 1 | . . . . . . . . . 1 . . . . . . . . . . GUARD 1 | . . . . . . . 1 . . . . . . . . . . . . EXPLORE 1 | . . . . . . . . . . . . . . . . 1 . . . Ally Attacks 352 | . . . . . . . 97 . . 11 153 36 23 8 7 . 17 . . Total Damage 8700 | . . . . . . . 1191 . . 98 3683 1673 935 307 282 . 531 . . Kills 41 | . . . . . . . 12 . . . 18 6 2 . 1 . 2 . . Allies Corrupted 2 | . . . . . . . . . . . . . . 1 . 1 . . . Allies Melted 2 | . . . . . . . . . . . . . . . . . . . 2 Intel | -11 -10 -10 -9 -9 -8 -7 -7 -7 -7 -5 -5 -5 -5 -5 -4 -3 -2 -2 -2 ------- Run | Yrd Mat Min Mat Min Mat Fac Sto Rec Scr Fac Ext Cet Arc Hub Fac Res Res Qua Frg Active Infowar (turns) 12946 | 53 43 956 305 237 1914 510 418 316 252 692 1619 563 117 15 408 559 584 203 3182 Optics 5144 | . . . 305 . 1893 . . . . . . . . . . . . . 2946 Sensors 6010 | . . . . . . 314 418 316 252 692 1619 563 117 15 408 229 584 203 280 IFF 285 | . . . . . . . . . . . . . . . . 285 . . . Seismic 3426 | 53 43 956 . 237 1914 223 . . . . . . . . . . . . . T.N.C. 1152 | . . . . . . . . . . . . . . . . 142 584 203 223 Machine Analysis 330 | . . . . . . . . . . . . . . . . 330 . . . ECM 311 | . . . . . 2 . 33 . . . . . . . . 37 4 58 177 Robot Analysis Total 3 | . . . 1 . 1 . . . . . . . . . 1 . . . . Derelict Logs Recovered 4 | . . 2 . 1 . . . . 1 . . . . . . . . . . Drone Launches 2 | . . . . . . . . . . . . . . . . 2 . . . Drone Recoveries . | . . . . . . . . . . . . . . . . . . . . Exploration | -11 -10 -10 -9 -9 -8 -7 -7 -7 -7 -5 -5 -5 -5 -5 -4 -3 -2 -2 -2 ------------- Run | Yrd Mat Min Mat Min Mat Fac Sto Rec Scr Fac Ext Cet Arc Hub Fac Res Res Qua Frg Turns Passed 18217 | 282 2164 1346 1410 696 1914 510 418 316 669 788 1752 563 117 15 515 773 584 203 3182 Spaces Moved 21591 | 133 948 632 654 526 979 1179 736 858 2117 1511 1771 241 120 50 1154 1650 1834 769 3729 Core 7 | 5 2 . . . . . . . . . . . . . . . . . . Treads 1776 | 128 511 . 100 . 601 . . . . . 436 . . . . . . . . Legs 2403 | . 435 632 53 . . . . . . . . . . . . . . . 1283 Wheels 1400 | . . . 501 526 373 . . . . . . . . . . . . . . Hover 26 | . . . . . . . . . . . . . . . 1 25 . . . Flight 15979 | . . . . . 5 1179 736 858 2117 1511 1335 241 120 50 1153 1625 1834 769 2446 Fastest Speed 7 | 50 160 190 110 120 26 23 23 23 23 20 23 25 25 25 22 16 7 11 11 Average Speed 55 | 155 175 190 148 120 146 25 25 23 23 24 58 25 25 25 24 24 18 18 54 Slowest Speed 650 | 160 650 190 400 120 225 26 26 26 29 26 160 25 25 25 200 120 23 20 335 Overloaded Moves 118 | . . . . . . . . . . . . . . . . . 24 27 67 Propulsion Burnouts . | . . . . . . . . . . . . . . . . . . . . Robots Hopped 194 | . . . . . 1 10 9 13 . 15 11 . 4 1 18 14 63 5 30 Potential Cave-ins 12 | . . . . . . . . . . . . . . . 2 2 . . 8 Cave-ins Triggered . | . . . . . . . . . . . . . . . . . . . . Exploration Rate (%) 60 | 4 95 76 66 95 73 38 71 79 88 35 90 66 79 8 38 39 53 74 46 Regions Visited 19 Branch Regions 11 Pre-discovered Areas 5 | . 1 1 1 . . . . 1 . 1 . . . . . . . . . Known Exits Taken 15 | . . . 1 . 1 1 1 1 1 1 1 1 1 1 1 1 1 1 . Unknown Exits Taken 4 | 1 1 1 . 1 . . . . . . . . . . . . . . . Scrap Searched 10 | . . 3 . 2 . . . . 5 . . . . . . . . . . Spaces Dug 117 | . 2 . . . 3 4 . 1 . 17 . . . 1 18 22 19 3 27 Terrain Destroyed 475 | . 7 3 66 . 6 4 36 43 . 17 14 10 5 1 42 26 36 3 156 Melee 91 | . . . . . 3 4 . 1 . 17 . . . 1 16 22 19 3 5 Projectile 107 | . 7 3 7 . . . . . . . 14 10 5 . 4 1 . . 56 AOE 277 | . . . 59 . 3 . 36 42 . . . . . . 22 3 17 . 95 Terrain Rammed . | . . . . . . . . . . . . . . . . . . . . Walls Destroyed . | . . . . . . . . . . . . . . . . . . . . Machines Disabled . | . . . . . . . . . . . . . . . . . . . . Actions | -11 -10 -10 -9 -9 -8 -7 -7 -7 -7 -5 -5 -5 -5 -5 -4 -3 -2 -2 -2 --------- Run | Yrd Mat Min Mat Min Mat Fac Sto Rec Scr Fac Ext Cet Arc Hub Fac Res Res Qua Frg Total 26185 | 166 1288 706 923 576 1284 1340 932 938 2298 1860 2404 699 170 49 1314 1908 1914 805 4611 Wait 2944 | 1 221 4 101 5 100 147 174 68 157 248 467 409 24 . 108 126 25 5 554 Move 21221 | 132 947 631 653 525 976 1158 717 832 2116 1482 1749 240 114 47 1121 1623 1720 758 3680 Hop 157 | . . . . . 1 10 9 12 . 13 10 . 1 1 14 12 50 5 19 Pick Up 124 | 2 9 9 18 14 11 1 6 1 9 6 5 2 . . 3 7 1 5 15 Fast Attach 151 | 7 4 1 8 . 4 2 . . 4 2 11 . 1 . 7 27 15 3 55 Attach 58 | . 3 1 4 . 7 . 1 . . 5 4 . . . . 9 6 4 14 Detach 44 | . . . 1 . 2 . . . 1 . 3 . . . 1 7 5 4 20 Swap 147 | . 2 7 20 3 24 4 2 1 3 10 8 5 4 . 8 11 2 2 31 Drop 194 | . 1 5 22 15 25 1 5 1 8 10 13 2 . . 3 14 10 5 54 Fire 736 | 24 93 40 96 14 121 . 4 5 . . 63 35 19 . 12 7 44 9 150 Melee 234 | . . . . . 3 17 11 8 . 63 13 6 7 1 24 42 27 5 7 Ram . | . . . . . . . . . . . . . . . . . . . . Kick 11 | . 1 8 . . . . . . . . . . . . . . . . 2 Crush 17 | . 7 . . . 10 . . . . . . . . . . . . . . Escape Stasis 78 | . . . . . . . . . . 21 2 . . . 13 23 9 . 10 Rewire 69 | . . . . . . . 3 10 . . 56 . . . . . . . . Trap . | . . . . . . . . . . . . . . . . . . . . Miscellaneous . | . . . . . . . . . . . . . . . . . . . . Route ------- -11/Scrapyard -10/Materials (discovered 5 exits: *Mat x2 / *Min x2 / [*Sub]) -10/Mines -9/Materials (discovered 4 exits: *Mat x2 / *Min x2) -9/Mines (discovered 3 exits: *Mat x2 / [*Zio]) -8/Materials -7/Factory (discovered 3 exits: *Sto / Low x2) -7/Storage -7/Recycling (discovered 2 exits: *Fac / *Scr) -7/Scraptown (discovered 2 exits: *Fac x2) -5/Factory (discovered 5 exits: *Fac / *Upp x2 / *Ext x2) -5/Extension (discovered 2 exits: *Fac / *Cet) -5/Cetus (discovered 2 exits: *Fac / *Arc) -5/Archives (discovered 3 exits: *Fac / *Hub x2) -5/Hub_04(d) -4/Factory (discovered 7 exits: *Res x4 / Upp x2 / Arm) -3/Research (discovered 4 exits: *Res x3 / Tes) -2/Research (discovered 5 exits: *Acc x3 / *Qua x2) -2/Quarantine (discovered 2 exits: [*Sec] / *Frg) -2/Protoforge History --------- Turn | Location | Event 3 | -11/Scrapyard | Discovered new exit (range 16) 283 | -11/Scrapyard | Entered Materials 303 | -10/Materials | Build established: Mutant 521 | -10/Materials | Discovered new exit (range 12) 802 | -10/Materials | Discovered new exit (range 13) 983 | -10/Materials | Derelicts attacked the area 1482 | -10/Materials | Discovered new exit (range 15) 1547 | -10/Materials | Lost 5 parts (1p2n2w) 1840 | -10/Materials | Repaired Lgt. Cannon 1861 | -10/Materials | Build established: Scavenger-Mutant 2024 | -10/Materials | Discovered new exit (range 15) 2256 | -10/Materials | Discovered new exit (range 16) 2447 | -10/Materials | Entered Mines 2454 | -10/Mines | Core integrity fell below 50% 2544 | -10/Mines | Met a Derelict bent on vengeance 2669 | -10/Mines | Learned location of Zion (-7) 2881 | -10/Mines | Build established: Mutant 2930 | -10/Mines | Learned location of 1 exit from Materials 2941 | -10/Mines | Joined a pair of Derelicts in attacking an 0b10 outpost 3073 | -10/Mines | Found a Scrap Suit stashed away for nefarious purposes 3372 | -10/Mines | Excavation squad dispatched 3372 | -10/Mines | A large section of the Mines collapsed 3593 | -10/Mines | A weapon hastily lodged in a ceiling crevice suddenly fell to the ground 3630 | -10/Mines | Discovered new exit (range 7) 3793 | -10/Mines | Entered Materials 3793 | -9/Materials | Evolved 2 slots: Propulsion x1, Utility x1 3794 | -9/Materials | Identified exit to Mines 4125 | -9/Materials | Build established: Scavenger-Mutant 4323 | -9/Materials | Discovered exit to Mines (range 13) 4549 | -9/Materials | Discovered new exit (range 14) 4723 | -9/Materials | Discovered new exit (range 8) 5147 | -9/Materials | Build established: Mutant 5203 | -9/Materials | Entered Mines 5479 | -9/Mines | Discovered new exit (range 7) 5670 | -9/Mines | Discovered new exit (range 10) 5687 | -9/Mines | A Derelict revealed a hidden shortcut to a safe place 5717 | -9/Mines | Found a damaged Exp. Sensor Array with a note attached 5720 | -9/Mines | Found Prototype Device 5733 | -9/Mines | Found DCF Scrap (13 items) 5835 | -9/Mines | Received a Rocket Launcher from a helpful Derelict 5899 | -9/Mines | Entered Materials 5899 | -8/Materials | Evolved 2 slots: Propulsion x1, Utility x1 6726 | -8/Materials | Identified Exp. Sensor Array 6726 | -8/Materials | Central database locked down 7196 | -8/Materials | Discovered new exit (range 17) 7254 | -8/Materials | Destroyed 7 combat bots 7499 | -8/Materials | First assault squad dispatched 7813 | -8/Materials | Identified exit to Factory 7813 | -8/Materials | Entered Factory 7813 | -7/Factory | Evolved 2 slots: Propulsion x1, Utility x1 7814 | -7/Factory | Identified exit to Lower Caves 8009 | -7/Factory | Repaired Broken Exp. Sensor Array 8120 | -7/Factory | Identified exit to Storage 8323 | -7/Factory | Entered Storage 8323 | -7/Storage | Accompanied by 1 ally 8330 | -7/Storage | Build established: Hacker-Sprinter 8448 | -7/Storage | Identified exit to Recycling 8451 | -7/Storage | Assisted by bots powering up and referring to "LRC-V3" 8545 | -7/Storage | Lost 4 allies 8576 | -7/Storage | Hacking Suite fried by hacking feedback 8708 | -7/Storage | Used back door to open Recycling access 8720 | -7/Storage | Lost 3 allies 8741 | -7/Storage | Entered Recycling 8850 | -7/Recycling | Discovered new exit (range 16) 8989 | -7/Recycling | Scanned before Scraplab entrance 9010 | -7/Recycling | Entered Scraplab 9011 | -7/Recycling | Discovered new exit (range 2) 9011 | -7/Recycling | Identified exit to Scraptown 9057 | -7/Recycling | Entered Scraptown 9057 | -7/Scraptown | Accompanied by 3 allies 9107 | -7/Scraptown | Discovered new exit (range 13) 9124 | -7/Scraptown | Scanned Subdweller tech in exchange for log data 9125 | -7/Scraptown | Learned 12 Research zone layouts 9132 | -7/Scraptown | Visited Cave Peace 9138 | -7/Scraptown | Visited Symbiants 9140 | -7/Scraptown | Visited The Evicted 9144 | -7/Scraptown | Visited Comm Corps 9146 | -7/Scraptown | Visited TADAMA 9153 | -7/Scraptown | Visited SPCMW 9156 | -7/Scraptown | Visited Awakened 9160 | -7/Scraptown | Visited UFD Registry 9160 | -7/Scraptown | Registered with UFD as "Roughbrain" 9224 | -7/Scraptown | Visited LU-1G1's Boring Crew 9232 | -7/Scraptown | Visited Junk Repository 9238 | -7/Scraptown | Visited Curators Association 9247 | -7/Scraptown | Visited Scrapoid Research Area 9273 | -7/Scraptown | Visited Derelict Rescue Squad 9279 | -7/Scraptown | Visited DA-N13 Charitable Foundation 9281 | -7/Scraptown | Found DCF Scrap (29 items) 9289 | -7/Scraptown | Visited Junk Repository 9302 | -7/Scraptown | Visited Chapter 10 9306 | -7/Scraptown | Visited Supply Room 9313 | -7/Scraptown | Visited A0-MCA Data Center 9314 | -7/Scraptown | Given an A+ rating by A0-MCA 9391 | -7/Scraptown | Found A0-MCA's Component Scanner 9539 | -7/Scraptown | Discovered new exit (range 5) 9540 | -7/Scraptown | Identified exit to Factory 9683 | -7/Scraptown | Met Optimus 9683 | -7/Scraptown | Accepted into 0bPrime 9726 | -7/Scraptown | Entered Factory 9726 | -5/Factory | Accompanied by 3 allies 9726 | -5/Factory | Evolved 4 slots: Propulsion x1, Utility x3 9767 | -5/Factory | Loaded intel: 8 recycling unit locations 9773 | -5/Factory | Learned location of Protoforge (-2) 9778 | -5/Factory | Identified exit to Upper Caves 9778 | -5/Factory | Identified exit to Extension 9855 | -5/Factory | Repaired Exp. Sensor Array 9979 | -5/Factory | Lost 3 allies 10103 | -5/Factory | Fabricated Weapon Mount (x2) 10177 | -5/Factory | Discovered new exit (range 15) 10514 | -5/Factory | Entered Extension 10583 | -5/Extension | Rescued a captive Derelict 10675 | -5/Extension | Rescued A7 10686 | -5/Extension | Rescued a captive Derelict 10689 | -5/Extension | Rescued a captive Derelict 11240 | -5/Extension | Spotted B-75 Beast 11250 | -5/Extension | P-70 Sage assimilated allied LS-2NT(g) 11254 | -5/Extension | Allies destroyed B-75 Beast 11263 | -5/Extension | Spotted B-75 Beast 11284 | -5/Extension | Destroyed B-75 Beast 11312 | -5/Extension | Lost 4 allies 11326 | -5/Extension | Rescued a captive Derelict 11328 | -5/Extension | Rescued a captive Derelict 11518 | -5/Extension | Build established: Hacker-Mutant 11563 | -5/Extension | Rescued a captive Derelict 11565 | -5/Extension | Rescued a captive Derelict 11756 | -5/Extension | Lost 3 allies 11772 | -5/Extension | Rescued a captive Derelict 11790 | -5/Extension | Watched by a mysterious "MATRIX" hacker 11825 | -5/Extension | Repaired Prc. Grenade Launcher 11830 | -5/Extension | Loaded intel: 1 recycling unit location 11922 | -5/Extension | Discovered new exit (range 10) 11924 | -5/Extension | Discovered new exit (range 6) 11948 | -5/Extension | Identified exit to Factory 12261 | -5/Extension | Identified exit to Cetus 12266 | -5/Extension | Entered Cetus 12266 | -5/Cetus | Accompanied by 9 allies (A7) 12271 | -5/Cetus | Acquired a Cetus Manufacturing Module code from A7 12301 | -5/Cetus | Spotted Cetus Guard 12301 | -5/Cetus | Spotted Cetus Guard 12301 | -5/Cetus | Spotted Cetus Guard 12303 | -5/Cetus | Allies destroyed Cetus Guard 12314 | -5/Cetus | Spotted Cetus Guard 12320 | -5/Cetus | Allies destroyed Cetus Guard 12320 | -5/Cetus | Destroyed Cetus Guard 12322 | -5/Cetus | Destroyed Cetus Guard 12337 | -5/Cetus | Started Cetus Manufacturing Module 12352 | -5/Cetus | Lost 5 allies 12362 | -5/Cetus | Manufactured an Enhanced Grunt 12387 | -5/Cetus | Manufactured an Enhanced Grunt 12412 | -5/Cetus | Manufactured an Enhanced Grunt 12437 | -5/Cetus | Manufactured an Enhanced Grunt 12462 | -5/Cetus | Manufactured an Enhanced Grunt 12487 | -5/Cetus | Escorted A7 to Cetus Mainframe 12499 | -5/Cetus | Discovered new exit (range 16) 12553 | -5/Cetus | Destroyed Cetus Guard 12559 | -5/Cetus | Destroyed Cetus Guard 12562 | -5/Cetus | Spotted Cetus Guard 12564 | -5/Cetus | Allies destroyed Cetus Guard 12567 | -5/Cetus | Discovered exit to Factory (range 15) 12569 | -5/Cetus | Met Revision 17 12614 | -5/Cetus | Found Prototype Protection 12614 | -5/Cetus | Identified Med. Regenerative Plating 12670 | -5/Cetus | Identified exit to Archives 12751 | -5/Cetus | Build established: Commander-Sprinter 12829 | -5/Cetus | Entered Archives 12829 | -5/Archives | Accompanied by 8 allies (A7) 12834 | -5/Archives | Received a hacking code to weaken MAIN.C 12886 | -5/Archives | Discovered new exit (range 15) 12892 | -5/Archives | Discovered new exit (range 15) 12909 | -5/Archives | Discovered exit to Factory (range 16) 12923 | -5/Archives | Identified exit to Hub_04(d) 12946 | -5/Archives | Entered Hub_04(d) 12946 | -5/Hub_04(d) | Accompanied by 5 allies 12947 | -5/Hub_04(d) | Discovered exit to Factory (range 16) 12952 | -5/Hub_04(d) | Network Hub disabled 12956 | -5/Hub_04(d) | Spotted Lightning 12961 | -5/Hub_04(d) | Spotted Lightning 12961 | -5/Hub_04(d) | Spotted Lightning 12961 | -5/Hub_04(d) | Entered Factory 12961 | -4/Factory | Accompanied by 1 ally 12961 | -4/Factory | Evolved 2 slots: Power x1, Propulsion x1 13017 | -4/Factory | Repaired Bore Cannon 13032 | -4/Factory | Loaded intel: 8 recycling unit locations 13063 | -4/Factory | Identified exit to Upper Caves 13063 | -4/Factory | Identified exit to Armory 13325 | -4/Factory | Build established: Hacker-Sprinter 13392 | -4/Factory | Identified exit to Research 13415 | -4/Factory | Spotted B-86 Titan 13461 | -4/Factory | Search patrols dispatched 13476 | -4/Factory | Entered Research 13476 | -3/Research | Evolved 2 slots: Utility x2 13477 | -3/Research | Identified exit to Testing 13477 | -3/Research | Identified exit to Research 13501 | -3/Research | Found Exp. ECM Suite 13505 | -3/Research | Spotted B-86 Titan 13676 | -3/Research | Revision forces began assault on 0b10 13692 | -3/Research | Repaired Diametric Drive 13747 | -3/Research | Loaded intel: 5 recycling unit locations 13758 | -3/Research | Lost 4 parts (1n2u1w) 13795 | -3/Research | Fabricated Hyp. Mass Driver? 13849 | -3/Research | Lost 3 allies 13851 | -3/Research | Lost 7 parts (2p2n3u) 13978 | -3/Research | Found Exp. Shield Generator 14176 | -3/Research | Research terminal network offline 14249 | -3/Research | Entered another Research area 14249 | -2/Research | Evolved 2 slots: Utility x2 14270 | -2/Research | Loaded intel: 5 recycling unit locations 14297 | -2/Research | Spotted B-90 Cyclops 14304 | -2/Research | Spotted B-90 Cyclops 14324 | -2/Research | Discovered new exit (range 5) 14325 | -2/Research | Identified exit to Access 14499 | -2/Research | Search patrols dispatched 14563 | -2/Research | Found Point Singularity Launcher 14565 | -2/Research | Identified exit to Quarantine 14833 | -2/Research | Entered Quarantine 14854 | -2/Quarantine | Lost 4 parts (1n1u2w) 14863 | -2/Quarantine | Central database locked down 14904 | -2/Quarantine | Found Alien Slashing Weapon 14904 | -2/Quarantine | Identified Sigix Broadsword 14954 | -2/Quarantine | Found Prototype Processor 14954 | -2/Quarantine | Identified Exp. Core Analyzer 14955 | -2/Quarantine | System corruption reached 10% 15002 | -2/Quarantine | Found Alien Energy Cannon 15021 | -2/Quarantine | Spotted Fortress 15035 | -2/Quarantine | Discovered new exit (range 7) 15035 | -2/Quarantine | Discovered new exit (range 6) 15036 | -2/Quarantine | Identified exit to Protoforge 15036 | -2/Quarantine | Entered Protoforge 15042 | -2/Protoforge | Spotted Hotshot 15073 | -2/Protoforge | Spotted Hotshot 15074 | -2/Protoforge | Superfortress began startup sequence 15085 | -2/Protoforge | Spotted B-90 Cyclops 15094 | -2/Protoforge | Spotted Hotshot 15095 | -2/Protoforge | Spotted Hotshot 15120 | -2/Protoforge | Spotted AP7-3 15120 | -2/Protoforge | Spotted AP7-3 15122 | -2/Protoforge | Spotted Overlord 15126 | -2/Protoforge | Spotted Decapitator 15126 | -2/Protoforge | Spotted Decapitator 15132 | -2/Protoforge | UFD initiated attack on Protoforge (Readiness: High) 15132 | -2/Protoforge | Loaded intel: 3 recycling unit locations 15153 | -2/Protoforge | Identified Core Cannon 15182 | -2/Protoforge | Optimus greeted in Protoforge 15190 | -2/Protoforge | Found Prototype Ballistic Gun 15190 | -2/Protoforge | Identified Cep. XC Strikerail 15199 | -2/Protoforge | Found Prototype Processor 15199 | -2/Protoforge | Identified Exp. Target Analyzer 15205 | -2/Protoforge | Lost 4 allies 15211 | -2/Protoforge | Forge Plexus network access discovered 15214 | -2/Protoforge | Found Exp. Targeting Computer 15221 | -2/Protoforge | Found Exp. Terror Saw 15234 | -2/Protoforge | Spotted Decapitator 15234 | -2/Protoforge | Spotted Decapitator 15269 | -2/Protoforge | Found Cep. XC Strikerail 15274 | -2/Protoforge | Found Exp. Core Analyzer 15282 | -2/Protoforge | Lost 13 allies 15345 | -2/Protoforge | Found Unknown Device 15345 | -2/Protoforge | Identified Scrap Suit 15393 | -2/Protoforge | Spotted Executioner 15396 | -2/Protoforge | Spotted Striker 15400 | -2/Protoforge | Spotted Hotshot 15400 | -2/Protoforge | Spotted Hotshot 15400 | -2/Protoforge | Spotted Hotshot 15400 | -2/Protoforge | Spotted Hotshot 15474 | -2/Protoforge | UFD reported confirmed Drillbomb installation 15513 | -2/Protoforge | Destroyed Hotshot 15524 | -2/Protoforge | Destroyed Hotshot 15575 | -2/Protoforge | UFD reported confirmed Drillbomb installation 15579 | -2/Protoforge | Fabricated Weapon Mount (x2) 15586 | -2/Protoforge | Spotted Executioner 15589 | -2/Protoforge | Spotted Executioner 15598 | -2/Protoforge | Spotted Executioner 15617 | -2/Protoforge | Spotted Striker 15621 | -2/Protoforge | Build established: Scavenger-Sprinter 15621 | -2/Protoforge | Spotted Striker 15621 | -2/Protoforge | Spotted Executioner 15621 | -2/Protoforge | Destroyed Executioner 15633 | -2/Protoforge | Destroyed Striker 15638 | -2/Protoforge | Spotted Striker 15645 | -2/Protoforge | Spotted Executioner 15668 | -2/Protoforge | Lost 5 allies 15799 | -2/Protoforge | Core integrity fell below 50% 15850 | -2/Protoforge | Spotted Decapitator 15852 | -2/Protoforge | Spotted Striker 15881 | -2/Protoforge | Lost 4 parts (2n1u1w) 15885 | -2/Protoforge | Spotted Executioner 15894 | -2/Protoforge | Spotted Executioner 15901 | -2/Protoforge | Found Scrap Suit 15920 | -2/Protoforge | Destroyed Executioner 15923 | -2/Protoforge | Spotted Striker 15925 | -2/Protoforge | Spotted Striker 15982 | -2/Protoforge | Lost 10 allies 16076 | -2/Protoforge | UFD reported confirmed Drillbomb installation 16183 | -2/Protoforge | Build established: Scavenger-Mutant 16183 | -2/Protoforge | Spotted Striker 16189 | -2/Protoforge | Spotted Hotshot 16197 | -2/Protoforge | Spotted Hotshot 16206 | -2/Protoforge | Spotted Hotshot 16207 | -2/Protoforge | UFD reported confirmed Drillbomb installation 16210 | -2/Protoforge | UFD reported confirmed Drillbomb installation 16232 | -2/Protoforge | Destroyed Hotshot 16316 | -2/Protoforge | Spotted Striker 16394 | -2/Protoforge | Spotted Decapitator 16394 | -2/Protoforge | UFD reported confirmed Drillbomb installation 16395 | -2/Protoforge | Spotted Decapitator 16399 | -2/Protoforge | Spotted Decapitator 16399 | -2/Protoforge | Spotted Decapitator 16400 | -2/Protoforge | Spotted Decapitator 16411 | -2/Protoforge | Destroyed Decapitator 16418 | -2/Protoforge | Destroyed Decapitator 16418 | -2/Protoforge | Destroyed Decapitator 16447 | -2/Protoforge | Lost 5 allies 16468 | -2/Protoforge | UFD reported confirmed Drillbomb installation 16482 | -2/Protoforge | Spotted Striker 16488 | -2/Protoforge | Spotted Striker 16490 | -2/Protoforge | Destroyed Striker 16535 | -2/Protoforge | Spotted Executioner 16540 | -2/Protoforge | Lost 3 allies 16553 | -2/Protoforge | Spotted Immortal 16553 | -2/Protoforge | Spotted Immortal 16553 | -2/Protoforge | Spotted Immortal 16555 | -2/Protoforge | Spotted Striker 16560 | -2/Protoforge | Spotted Striker 16561 | -2/Protoforge | Found Exp. Core Analyzer 16609 | -2/Protoforge | Destroyed Immortal 16616 | -2/Protoforge | Spotted Executioner 16618 | -2/Protoforge | Spotted Executioner 16619 | -2/Protoforge | Found Exp. Jetlance 16668 | -2/Protoforge | Lost 12 allies 16741 | -2/Protoforge | Spotted Executioner 16742 | -2/Protoforge | Spotted Striker 16766 | -2/Protoforge | Core integrity fell below 20% 16768 | -2/Protoforge | Spotted Executioner 16775 | -2/Protoforge | Spotted Executioner 16802 | -2/Protoforge | Optimus destroyed during the operation 16822 | -2/Protoforge | Build established: Scavenger-Scrapper 16837 | -2/Protoforge | Lost 7 allies 16843 | -2/Protoforge | Found Exp. Core Analyzer 16862 | -2/Protoforge | Spotted Striker 16862 | -2/Protoforge | Spotted Executioner 16939 | -2/Protoforge | Spotted Striker 16939 | -2/Protoforge | Spotted Executioner 16940 | -2/Protoforge | Spotted Striker 16961 | -2/Protoforge | Spotted Striker 16965 | -2/Protoforge | Spotted Striker 16987 | -2/Protoforge | Destroyed Executioner 17001 | -2/Protoforge | Spotted Executioner 17002 | -2/Protoforge | Spotted Striker 17007 | -2/Protoforge | Lost 9 allies 17035 | -2/Protoforge | Spotted Striker 17036 | -2/Protoforge | Spotted Striker 17048 | -2/Protoforge | Destroyed Striker 17100 | -2/Protoforge | Spotted Hotshot 17105 | -2/Protoforge | Spotted Hotshot 17118 | -2/Protoforge | Spotted Striker 17148 | -2/Protoforge | Destroyed 7 combat bots 17161 | -2/Protoforge | Destroyed Hotshot 17161 | -2/Protoforge | Destroyed Hotshot 17179 | -2/Protoforge | Lost 22 allies 17267 | -2/Protoforge | Spotted Executioner 17285 | -2/Protoforge | Spotted Executioner 17345 | -2/Protoforge | Found Scrap Suit 17415 | -2/Protoforge | Spotted AP7-3 17835 | -2/Protoforge | UFD reported confirmed Drillbomb installation 17867 | -2/Protoforge | Spotted Striker 17920 | -2/Protoforge | Spotted Executioner 17922 | -2/Protoforge | Spotted Executioner 17924 | -2/Protoforge | Spotted Executioner 17956 | -2/Protoforge | Destroyed 7 combat bots 17956 | -2/Protoforge | Spotted Hotshot 17964 | -2/Protoforge | Lost 5 allies 17968 | -2/Protoforge | Spotted Hotshot 17972 | -2/Protoforge | Spotted Hotshot 18001 | -2/Protoforge | Spotted Hotshot 18001 | -2/Protoforge | Spotted Hotshot 18001 | -2/Protoforge | Spotted Hotshot 18019 | -2/Protoforge | Destroyed Hotshot 18044 | -2/Protoforge | Lost 8 allies 18103 | -2/Protoforge | Spotted Executioner 18105 | -2/Protoforge | Found 0bPrime Scrap Suit 18179 | -2/Protoforge | Lost 9 allies 18209 | -2/Protoforge | Spotted Executioner 18211 | -2/Protoforge | Spotted Striker 18212 | -2/Protoforge | Destroyed Executioner 18214 | -2/Protoforge | Destroyed Striker 18218 | -2/Protoforge | Destroyed by Executioner with Helical Railgun Last Messages --------------- 18208_ Slug penetrates Wall. 18209_ N-04 Retriever collects Ovr. Huge Scrapsphere. 18210_ System corrupted: Point Singularity Launcher failed to launch. 18211_ System corrupted: Matter fused (-9). 18211_ Penetrated by Slug. 18211_ Slug penetrates Wall. 18212_ Executioner destroyed. 18212_ G-73 Enforcer destroyed. 18212_ I-47 Archangel destroyed. 18213_ Slug penetrates Wall. 18214_ Striker destroyed. 18215_ Penetrated by Slug. 18216_ Slug penetrates Wall. 18216_ Destroyed Adv. Heat Sink. 18216_ G-73 Enforcer destroyed. 18216_ Destroyed Adv. Heat Sink. 18218_ The unstable cave ceiling collapses. 18218_ Penetrated by Slug. Map ----- +----------------------------------------------------+ | ##??????##?????????##????#########?????????????# | | ##??????##?????????##????#########?????????????# | | ##??????##?????????##????##??""?##?????????????# | | ##??????##?????????########??T"?####???????????# | | ##??????##?????????########""?""####???????????# | | ##??????##????????????????? ? ??##???????????# | | ##???#####?????????#######? ?"? ??##???????????# | | ##???#########+######;;;## ""? ?##???????????# | | ##???##???? # "?? ?##???????????# | | ##???##???? + "??? ?##???????????# | | ##???##?????? # ???? ##???????????# | | ##??## ????? %%# ???? ###??????????# | | ##??# " ?????? # ????? # #??????????# | | ##### ! %??????? %%% " ????? # #??????????# | | ######!%% ?########""#; #;#######;##??????????# | | | ? ! ?########## ; # == ##?????????# = | | ?? *%% ?### ##;%#;# ! #####?????# | | ??"" ### ; % !! ! ;#""#;#######?# | | ??"" T % ### # !! % "%;;; # #?#% | | ???" " ### "" ! %[ %&%%%% " ### | | ???" ### """ #[! & ;;##; " # # | | ?? ? ### " # % " % ;%% ; ! # | | ?"" " """ ; ## # ;;;##; ; " % ; ! # | | ?" "%"""" ; # ;% % !% % #% | | """"""""" ; ; ;; % % %; ;%#%% | | """" """" @ ; ;!! % %%%%% %n; | | n ; ! %%%%%%%%%%% %%% | | E ; ; % %%%%%%%%%%%%% | | # ; ;% %;%;&%%&%%%#%% | | ##########;; ####### ;; ;%%%; !%= * #%% | | ###########" ####### %&;% [*=* ! !# | | #######???## ##??###; %%%!; ! =[#%% | | ##???##% ##### # % %%; %!; # # % | | ##??## ## ## !h % ;%%% # | | # "# =% %% %%/% ;;;;;;;;= # | | # " =[! b % %;% %% "![# | | ! [ " !=!! gg % % % %%% ; # # | | [![!#=! [" [!! m% % % %% &; % # | | ]=* !%=&[!""!%% % %% %;; %%; % %# # | | %%& %!%%%%%=%%% %%%%%%%%%%n %% n %;% %% # | | % %%%!!%%*!%%%% % %%%% %% % %%%% ; %# ## % | | =%=!%!%%%%%!%&% %%[%!% %% % % ;#% ###% | | """"""!!%!![==!*! "!=[!=[![;;;;;%;;[; = #%!!# | | *"[![ [! *!=[[!!=%!! =# /[ #!# # | | "! # [!*!=* * # # ## # | | "" " #### = ; # # # ###### # % | | " ##???### # ## # ##???? # | | "##?????### ## # # ### ###?????# # | | ##???????####### ## #####??????? # | | ########????????????? ### ##?????????? # | +----------------------------------------------------+ Best States ------------- Heat Dissipation 68 Energy Generation 49 Energy Capacity 440 Matter Stores 300 Matter Capacity 300 Sight Range 23 Robot Scan Range 20 Terrain Scan Density 10 ECM Strength 3 Additional Mass Support 12 Armor Coverage 525 Propulsion Shielding 33 Melee Speed Boost 40 Evasion (%) 69 Targeting Accuracy 32 Target Analysis 13 Core Analysis 12 Armor Integrity Analysis 40 Recoil Reduction 4 Offensive Hacking 30 Defensive Hacking 14 Authchip Count 1 Item Schematics ----------------- Exp. Sensor Array | -8/Materials | Scanalyzed Microactuators | -7/Factory | Scanalyzed Weapon Mount | -7/Recycling | Hacked Imp. Cesium-ion Thruster | -7/Recycling | Hacked Cld. Cesium-ion Thruster | -5/Factory | Hacked Hyp. Mass Driver | -4/Factory | Hacked Centrium Medium Armor Plating | -4/Factory | Scanalyzed Robot Schematics ------------------ None Fabricated ------------ Weapon Mount | x2 | -5/Factory | Authchip Hyp. Mass Driver | x2 | -3/Research | Authchip Weapon Mount | x2 | -2/Protoforge Repaired ---------- Lgt. Cannon | 20% | -10/Materials Exp. Sensor Array | 62% | -7/Factory | Broken Exp. Sensor Array | 62% | -5/Factory Prc. Grenade Launcher | 48% | -5/Extension Bore Cannon | 49% | -4/Factory Diametric Drive | 31% | -3/Research Studied --------- VTOL Module | -8/Materials | Hacked Lgt. Nuclear Core | -7/Factory | Hacked Axe | -7/Factory | Hacked Cesium-ion Thruster | -5/Factory | Hacked Mic. Fission Core | -5/Factory | Hacked Xenon Bombardment Thruster | -5/Factory | Hacked Great Axe | -5/Factory | Hacked Field Propulsion Drive | -4/Factory | Hacked Hyp. Mass Driver | -2/Quarantine | Hacked Alien Tech Used ----------------- Sigix Broadsword Core Cannon Achievements -------------- None Challenges ------------ None Game ------ Seed AntimatterAmuletTreads Manual? 0 Play Time 05:14:26 Cumulative 85.1 hours Start 2026.08.01 @ 05:30:42 End 2026.08.01 @ 12:04:46 Sessions 5 Manual Loads 0 Difficulty Rogue Special Mode None Game No. 43 Rogue 43 Adventurer 0 Explorer 0 Win Type - Total 3 Types 1/0/1/0/0/0/0/1/0/0 Lore% 65 Gallery% 54 Achievement% 46 Wizard Run 0 Options --------- Layout 1 ASCII 0 Keyboard 1 Movement Arrows Keybinds 0 Fullscreen 1 Font 24/Smallcaps Map View 50x35 Zoom Use 0% Tactical HUD 1 Map Filters NONE Filters NONE Steam 1 RUN: cda4d7c0-a239-404c-bbc3-f0e506e570bf